bitfinex/quotes_ETHUSD_20240710
["timestamp","ask_amount","ask_price","bid_price","bid_amount"]
[1720619292116,3.0,3108.2,3107.0,0.06436553]
[1720619292117,6.21737,3108.2,3107.0,0.06436553]
[1720619292442,6.21737,3108.2,3106.9,0.25404684]
[1720619292443,3.21802,3107.5,3106.9,0.25404684]
[1720619293503,3.21791,3107.7,3106.9,0.25404684]
[1720619293701,3.21791,3107.7,3107.0,0.27301468]
[1720619293906,3.21802,3107.5,3106.8,2.4761]
[1720619294110,3.21865,3106.9,3106.3,2.2589]
[1720619295036,0.08047193,3107.0,3106.3,2.2589]
[1720619295329,3.21857,3107.0,3106.3,2.2589]
[1720619296294,3.21828,3107.3,3106.3,5.47809]
[1720619296551,6.2181,3107.5,3106.4,0.61218011]
[1720619296693,3.21824,3107.3,3106.4,0.547809]
[1720619296893,3.21824,3107.3,3106.4,0.61218012]
[1720619297198,3.21834,3107.2,3106.4,0.547809]
[1720619297592,3.2182,3107.4,3106.4,20.387809]
[1720619297798,3.0,3107.3,3106.5,2.5865949]
[1720619297999,3.0,3107.3,3106.5,5.8056449]
[1720619298229,3.0,3107.5,3106.5,5.8700139]
[1720619298532,3.21774,3107.8,3106.6,3.21887]
[1720619298832,3.21774,3107.8,3106.7,19.90436529]
[1720619299037,3.21793,3107.6,3106.8,3.05932353]
[1720619299257,6.43658,3107.3,3106.7,19.84]
[1720619299410,3.21841,3107.2,3106.7,19.84]
[1720619299593,3.21862,3107.0,3106.7,19.84]
[1720619299800,3.21862,3107.0,3106.3,2.2589]
[1720619300146,0.08047199,3106.9,3106.3,2.2589]
[1720619300296,3.21891,3106.7,3106.2,19.84]
[1720619300496,3.21872,3106.9,3106.2,19.84]
[1720619300737,3.0,3106.8,3106.2,19.84]
[1720619300967,3.21849,3107.1,3106.2,22.571]
[1720619301272,3.21824,3107.3,3106.2,25.79034]
[1720619301557,6.43613,3107.5,3106.4,2.4497]
[1720619301731,6.43613,3107.5,3106.5,3.21899]
[1720619301911,6.43613,3107.5,3106.6,0.566869]
[1720619302316,5.62243,3108.0,3106.6,0.63123829]
[1720619302317,3.21772,3107.8,3106.6,0.63123829]
[1720619302548,3.21793,3107.6,3106.6,31.16017829]
[1720619302816,3.21813,3107.4,3106.6,27.876869]
[1720619303054,3.2183,3107.3,3106.6,27.31]
[1720619303374,3.21865,3106.9,3105.8,9.06860153]
[1720619303661,3.21927,3106.3,3105.8,9.06860153]
[1720619303820,0.08049048,3106.2,3105.8,9.06860153]
[1720619304015,0.08049048,3106.2,3105.8,1.59860153]
[1720619304250,3.21939,3106.2,3105.8,1.59860153]
[1720619304752,0.08049353,3106.1,3105.4,19.84]
[1720619305132,3.22004,3105.6,3104.7,10.69086]
[1720619305331,3.21962,3106.0,3104.8,24.44020386]
[1720619305639,3.0,3105.9,3105.2,3.22039]
[1720619305830,3.2192,3106.4,3105.3,0.06439878]
[1720619305831,3.0,3106.1,3105.3,0.06439878]
[1720619306043,3.21944,3106.2,3105.3,0.06439878]
[1720619306227,3.0,3106.1,3105.3,0.39287766]
[1720619306427,3.0,3106.3,3105.3,0.39287766]
[1720619306626,3.21956,3106.1,3105.3,20.16847888]
[1720619306916,6.21895,3106.6,3105.3,20.16847888]
[1720619306917,6.21958,3106.0,3105.3,20.16847888]
[1720619307553,3.21983,3105.8,3105.3,19.84]
[1720619307724,6.21964,3106.0,3105.3,19.84]
[1720619308425,3.21982,3105.8,3105.3,19.84]
[1720619308826,3.21974,3105.9,3105.3,19.84]
[1720619309033,6.21958,3106.0,3105.3,21.88172125]
[1720619309244,3.21974,3105.9,3105.3,21.88172125]
[1720619309457,3.21974,3105.9,3105.3,19.84]
[1720619309458,3.2198,3105.8,3105.3,19.84]
[1720619309673,3.2198,3105.8,3105.0,19.84]
[1720619309967,3.22021,3105.4,3105.0,19.84]
[1720619310131,3.22021,3105.4,3104.6,2.4594]
[1720619310132,3.22021,3105.4,3104.7,19.84]
[1720619310449,3.22021,3105.4,3104.7,22.06994]
[1720619310450,0.08051566,3105.3,3104.7,22.06994]
[1720619310634,3.30072355,3105.4,3104.7,22.06994]
[1720619310965,3.22006,3105.6,3104.7,22.06994]
[1720619311158,3.0,3105.5,3104.7,22.06994]
[1720619311857,3.0,3105.5,3104.7,25.29081]
[1720619312055,3.0,3105.5,3104.8,2.83943003]
[1720619312268,3.21963,3106.0,3104.9,3.22063]
[1720619312560,3.21985,3105.8,3104.8,5.995811]
[1720619312766,3.0,3105.7,3104.8,5.995811]
[1720619312926,6.21989,3105.7,3104.8,2.775021]
[1720619313335,3.22014,3105.5,3104.7,19.84]
[1720619313541,9.43985,3105.7,3104.7,19.84]
[1720619313761,4.29470941,3107.2,3105.4,3.22013]
[1720619313762,2.4735,3107.1,3105.4,3.22013]
[1720619313933,3.21897,3106.6,3105.6,10.68993]
[1720619314242,3.21928,3106.3,3105.6,7.47]
[1720619314440,3.21948,3106.1,3105.5,19.84]
[1720619314664,0.08050419,3106.0,3104.7,7.47]
[1720619314866,3.22011,3105.5,3104.7,7.47]
[1720619315181,2.3699,3106.2,3104.4,19.84]
[1720619315344,2.3699,3106.2,3104.0,7.47]
[1720619315345,9.41055,3105.0,3103.7,19.63]
[1720619315530,3.2212,3104.5,3103.7,7.47]
[1720619315770,3.22136,3104.3,3103.7,7.47]
[1720619315937,3.22136,3104.3,3103.3,19.84]
[1720619315938,3.22155,3104.1,3103.3,19.84]
[1720619317035,3.22172,3104.0,3103.1,27.31]
[1720619317267,3.30227399,3104.0,3103.1,27.31]
[1720619318471,3.22155,3104.1,3103.1,27.31]
[1720619318677,3.2221,3103.6,3103.1,27.31]
[1720619318923,3.22224,3103.5,3102.9,0.1120104]
[1720619321333,3.22228,3103.4,3102.9,0.1120104]
[1720619321791,9.212,3104.0,3102.9,0.1120104]
[1720619321939,3.22196,3103.7,3102.9,0.1120104]
[1720619322145,3.0,3103.6,3102.9,0.1120104]
[1720619322451,3.0,3103.8,3102.9,0.1120104]
[1720619322639,3.0,3103.9,3102.9,3.66825044]
[1720619322839,3.0,3104.0,3103.0,23.06261]
[1720619323467,3.22114,3104.5,3103.0,19.84]
[1720619323667,4.71986,3105.8,3103.4,3.22226]
[1720619323668,3.22099,3104.7,3103.4,3.22226]
[1720619323871,3.22115,3104.5,3103.4,24.10954481]
[1720619324179,3.22115,3104.5,3103.5,3.22216]
[1720619324482,3.22085,3104.8,3103.6,3.22204]
[1720619324702,6.44174,3104.8,3103.6,3.22204]
[1720619325180,5.66112,3105.0,3103.8,3.22183]
[1720619325389,5.66112,3105.0,3103.4,20.88730481]
[1720619325390,3.22092,3104.7,3103.9,0.322183]
[1720619326658,3.0,3104.6,3103.9,0.322183]
[1720619327354,3.0,3104.8,3103.7,30.53189]
[1720619327556,3.22096,3104.7,3103.7,30.53189]
[1720619327773,3.22116,3104.5,3103.7,27.31]
[1720619328064,3.2215,3104.2,3103.7,27.31]
[1720619328273,0.08054172,3104.4,3103.2,19.84]
[1720619328274,3.22124,3104.4,3103.2,19.84]
[1720619328474,3.22124,3104.4,3103.4,3.22227]
[1720619329075,3.22107,3104.6,3103.4,3.22227]
[1720619329269,3.0,3104.8,3103.4,0.06443892]
[1720619329585,3.08053702,3104.9,3103.5,3.22206]
[1720619329780,3.22114,3104.5,3103.6,27.31]
[1720619329980,3.0,3104.4,3103.6,30.53202]
[1720619330295,3.0,3104.6,3103.7,3.22195]
[1720619330494,3.0,3104.6,3103.8,3.053195]
[1720619330663,6.22093,3104.7,3103.8,3.053195]
[1720619330980,3.22109,3104.6,3103.8,3.053195]
[1720619331179,3.22109,3104.6,3103.6,27.31]
[1720619331180,6.22115,3104.5,3103.6,27.31]
[1720619331807,6.22115,3104.5,3103.6,30.53206]
[1720619332113,6.22115,3104.5,3103.6,27.31]
[1720619332261,6.22115,3104.5,3103.6,30.53205]
[1720619332981,3.0,3104.5,3103.7,3.22195]
[1720619333162,3.0,3104.7,3103.8,6.274975]
[1720619333361,3.22022,3105.4,3104.0,3.22162]
[1720619333561,3.22051,3105.1,3104.1,3.22145]
[1720619333772,3.22027,3105.4,3104.4,3.22122]
[1720619333992,3.22027,3105.4,3104.4,5.527342]
[1720619334367,3.21989,3105.7,3104.6,3.22101]
[1720619334628,0.16193616,3106.2,3105.1,3.22044]
[1720619334769,3.21934,3106.3,3105.1,19.84]
[1720619334770,3.21948,3106.1,3105.1,19.84]
[1720619334977,3.21934,3106.3,3105.3,3.22023]
[1720619334978,3.21928,3106.3,3105.3,3.22023]
[1720619335203,3.21928,3106.3,3105.4,2.63450213]
[1720619335505,3.21928,3106.3,3104.7,15.38086]
[1720619335506,0.08049646,3106.2,3104.2,3.66630087]
[1720619335800,3.21975,3105.9,3104.8,6.44155]
[1720619335959,3.21975,3105.9,3104.9,3.2207]
[1720619336166,6.30029023,3105.8,3104.6,5.63098]
[1720619336361,3.30040046,3105.7,3104.6,5.63098]
[1720619336560,3.30040046,3105.7,3104.7,0.863098]
[1720619336809,3.22017,3105.5,3104.6,2.41]
[1720619336964,0.08051046,3105.7,3104.2,3.22137]
[1720619336965,3.22055,3105.1,3104.2,2.4456]
[1720619337367,0.08052687,3105.0,3104.2,2.4456]
[1720619337587,3.0,3105.4,3104.4,3.22121]
[1720619337915,3.0,3105.4,3104.5,3.22106]
[1720619338208,3.72471669,3106.1,3104.6,0.644227]
[1720619338209,3.0,3105.9,3104.6,0.644227]
[1720619338511,0.50520669,3106.1,3104.4,3.22122]
[1720619338512,3.22001,3105.6,3104.4,3.22122]
[1720619338714,3.22021,3105.4,3104.2,5.66694]
[1720619338875,3.22042,3105.2,3104.2,5.66694]
[1720619339075,3.30094481,3105.2,3104.2,2.4456]
[1720619339275,3.30094481,3105.2,3104.2,6.39353915]
[1720619339478,3.30094481,3105.2,3104.2,2.4456]
[1720619339736,3.22062,3105.0,3104.2,2.4456]
[1720619339922,0.08052897,3104.9,3104.2,2.4456]
[1720619340288,3.0,3105.1,3104.2,2.4456]
[1720619340621,7.03978,3105.9,3104.2,2.4456]
[1720619340622,3.22041,3105.2,3104.3,3.22132]
[1720619340819,3.22051,3105.1,3104.2,2.4456]
[1720619341033,3.22051,3105.1,3104.2,6.39354615]
[1720619341345,3.22089,3104.8,3104.0,1.59860153]
[1720619341477,3.08053417,3105.3,3104.0,1.59860153]
[1720619341681,6.22038,3105.3,3104.1,3.22154]
[1720619341898,6.22038,3105.3,3103.8,19.84]
[1720619341899,3.22085,3104.8,3103.8,19.84]
[1720619342099,3.0,3105.3,3103.8,19.84]
[1720619342100,3.22115,3104.5,3103.8,19.84]
[1720619342308,3.30169047,3104.5,3103.8,19.84]
[1720619342506,3.30169047,3104.5,3103.4,7.47]
[1720619342507,3.0,3104.4,3103.4,7.47]
[1720619342921,3.0,3104.5,3103.4,7.47]
[1720619343100,3.0,3104.5,3103.4,10.69222]
[1720619343101,3.22132,3104.4,3103.4,10.69222]
[1720619343316,6.22116,3104.5,3103.6,3.22204]
[1720619343474,6.22116,3104.5,3103.5,1.069222]
[1720619343681,3.22151,3104.2,3103.4,7.47]
[1720619344036,3.22126,3104.4,3103.4,7.47]
[1720619344183,3.0,3104.3,3103.4,7.47]
[1720619344381,3.2215,3104.2,3103.4,7.47]
[1720619344589,3.0,3104.3,3103.0,23.06258]
[1720619344779,5.48734,3104.7,3102.8,19.63]
[1720619344780,3.22166,3104.0,3103.1,22.15745904]
[1720619345009,3.22103,3104.6,3103.1,19.84]
[1720619345010,3.22248,3103.2,3103.1,19.84]
[1720619345184,3.22248,3103.2,3102.9,0.1120104]
[1720619345185,6.22248,3103.2,3102.9,0.1120104]
[1720619345394,3.30316565,3103.1,3102.9,0.1120104]
[1720619345599,9.44536,3103.0,3102.9,0.1120104]
[1720619346092,3.0,3103.0,3102.9,0.1120104]
[1720619346294,3.0,3103.3,3102.9,0.1120104]
[1720619346692,3.22074,3104.9,3102.9,0.1120104]
[1720619346693,6.1305,3104.6,3102.9,0.1120104]
[1720619346896,9.43209737,3104.6,3103.1,7.47]
[1720619347094,3.22153,3104.2,3103.1,27.31]
[1720619347299,3.22153,3104.2,3103.1,30.53251]
[1720619347492,3.22153,3104.2,3103.1,33.75503]
[1720619347684,3.22153,3104.2,3103.1,30.53251]
[1720619347884,3.22153,3104.2,3103.2,3.0775541]
[1720619348193,3.22196,3103.8,3103.1,27.31]
[1720619348392,3.22193,3103.8,3102.9,0.1120104]
[1720619348716,3.22173,3104.0,3102.9,0.1120104]
[1720619348717,3.22175,3103.9,3102.9,0.1120104]
[1720619348890,3.22161,3104.1,3102.9,3.3347404]
[1720619349094,3.22113,3104.5,3103.3,3.22236]
[1720619349423,3.22064,3105.0,3103.7,2.3597]
[1720619349424,3.22088,3104.8,3103.7,2.3597]
[1720619349630,3.22075,3104.9,3103.8,0.06442449]
[1720619349841,3.22091,3104.8,3103.8,0.06442795]
[1720619350019,3.2203,3105.3,3103.8,0.06442769]
[1720619350333,3.22021,3105.4,3104.2,3.22137]
[1720619350651,3.22021,3105.4,3104.3,3.60787393]
[1720619350853,3.21992,3105.7,3104.3,20.22655393]
[1720619350993,5.50037,3106.3,3104.4,2.9097]
[1720619350994,3.72470669,3106.1,3104.4,2.9097]
[1720619351342,3.72470669,3106.1,3104.9,3.22062]
[1720619351343,3.21957,3106.0,3104.9,3.22062]
[1720619351632,3.21993,3105.7,3104.9,1.391152]
[1720619351847,0.08050309,3106.0,3104.9,1.391152]
[1720619351848,3.21988,3105.8,3104.9,1.391152]
[1720619352004,3.21959,3106.0,3104.9,1.391152]
[1720619352195,3.21957,3106.0,3104.9,4.611772]
[1720619352902,0.50520669,3106.1,3105.1,3.2205]
[1720619353115,0.50520669,3106.1,3105.2,0.39289028]
[1720619353331,0.50520669,3106.1,3105.3,0.06440004]
[1720619353550,0.50520669,3106.1,3105.4,2.4293]
[1720619354036,0.50520669,3106.1,3105.2,0.32849024]
[1720619354205,3.72467669,3106.1,3105.2,0.32849024]
[1720619354413,0.50520669,3106.1,3105.2,0.32849024]
[1720619354613,3.72468669,3106.1,3105.3,2.33889902]
[1720619354834,3.21965,3106.0,3105.1,19.84]
[1720619355037,0.08050345,3105.9,3105.1,19.84]
[1720619355218,3.0,3105.9,3105.1,19.84]
[1720619355635,3.300313,3105.8,3105.1,19.84]
[1720619355836,0.08050842,3105.7,3105.1,19.84]
[1720619356040,0.08050842,3105.7,3104.4,7.47]
[1720619356041,3.22028,3105.4,3104.4,7.47]
[1720619356370,3.0,3105.9,3103.6,2.4827]
[1720619356371,3.22076,3104.9,3103.6,2.4827]
[1720619356522,3.22105,3104.6,3103.7,0.24827]
[1720619356718,0.08053938,3104.5,3103.6,5.70475]
[1720619357959,6.22068,3105.0,3103.8,3.22184]
[1720619358164,3.0,3105.0,3103.8,3.22184]
[1720619358347,3.0,3105.2,3104.0,3.2216]
[1720619358550,3.22057,3105.1,3104.0,3.2216]
[1720619358872,3.0,3105.0,3104.1,3.5437]
[1720619359965,3.22053,3105.1,3104.1,3.5437]
[1720619360191,3.22063,3105.0,3104.1,0.32216]
[1720619360329,3.22063,3105.0,3103.6,2.4827]
[1720619360330,3.22093,3104.7,3103.6,2.4827]
[1720619360530,3.22093,3104.7,3103.4,3.22218]
[1720619360531,3.22113,3104.5,3103.4,3.22218]
[1720619360731,3.22093,3104.7,3103.5,3.22206]
[1720619360966,3.0,3104.8,3103.6,0.06443213]
[1720619361167,3.0,3105.0,3104.0,3.22164]
[1720619361473,3.0,3105.0,3104.1,3.080437]
[1720619361786,3.22074,3104.9,3104.1,3.080437]
[1720619362132,3.0,3105.0,3103.6,5.47566]
[1720619362133,0.08052979,3104.8,3103.6,5.47566]
[1720619362347,3.22103,3104.6,3103.6,5.47566]
[1720619362840,3.22102,3104.7,3103.7,3.22191]
[1720619362841,3.22093,3104.7,3103.7,3.22191]
[1720619363039,3.22076,3104.9,3103.7,3.22191]
[1720619363563,3.22051,3105.1,3103.9,3.22174]
[1720619363873,3.22061,3105.0,3104.0,0.32861695]
[1720619364169,3.22061,3105.0,3103.6,2.2536]
[1720619364170,3.22103,3104.6,3103.6,2.2536]
[1720619364331,0.08053761,3104.5,3103.6,2.2536]
[1720619364690,6.30166761,3104.5,3103.6,2.2536]
[1720619364895,3.08053761,3104.5,3103.6,2.2536]
[1720619365052,3.22135,3104.3,3103.3,1.59860153]
[1720619365252,0.08054448,3104.2,3103.3,1.59860153]
[1720619365486,6.22123,3104.5,3103.3,26.12322968]
[1720619365651,3.0,3104.4,3103.4,3.22226]
[1720619365849,3.0,3104.4,3103.3,26.12322968]
[1720619365850,3.22135,3104.3,3103.3,22.90085968]
[1720619366050,0.08054237,3104.2,3103.3,26.12320968]
[1720619366369,3.0,3104.4,3103.3,26.12316968]
[1720619366580,3.08054235,3104.5,3103.4,6.43902872]
[1720619366792,3.22136,3104.3,3103.4,6.43902872]
[1720619366944,3.22136,3104.3,3103.4,3.21677872]
[1720619367135,3.30190243,3104.3,3103.4,6.43903872]
[1720619367340,3.22162,3104.1,3103.3,22.90085968]
[1720619367570,3.22162,3104.1,3103.3,19.84]
[1720619367776,3.22167,3104.0,3103.3,19.84]
[1720619368341,6.44341,3104.0,3103.3,19.84]
[1720619368538,3.22196,3103.7,3103.0,19.84]
[1720619368742,0.08055903,3103.6,3103.0,19.84]
[1720619369054,3.22196,3103.7,3103.0,19.84]
[1720619369370,3.30251903,3103.7,3103.0,19.84]
[1720619369697,3.22212,3103.6,3103.0,19.84]
[1720619369898,0.08056258,3103.5,3103.0,19.84]
[1720619370112,3.22212,3103.6,3102.9,0.1120104]
[1720619370282,0.0805606,3103.5,3102.9,2.05721144]
[1720619370461,0.0805606,3103.5,3102.9,0.0620104]
[1720619370669,3.22252,3103.2,3102.9,0.0620104]
[1720619370923,0.08057041,3103.1,3102.9,0.0620104]
[1720619371199,6.44536,3103.0,3102.9,0.0620104]
[1720619371603,3.22268,3103.0,3102.9,0.0620104]
[1720619371794,6.22268,3103.0,3102.9,0.0620104]
[1720619371992,3.0,3103.0,3102.9,0.0620104]
[1720619372159,3.82,3103.9,3102.9,0.0620104]
[1720619372365,0.08056735,3103.9,3102.9,0.0620104]
[1720619372572,3.2223,3103.4,3102.9,0.0620104]
[1720619372760,3.2226,3103.1,3102.9,0.0620104]
[1720619372991,0.08057631,3103.0,3102.9,0.0620104]
[1720619373193,6.44536,3103.0,3102.9,0.0620104]
[1720619373357,3.0,3103.0,3102.9,0.0620104]
[1720619373800,6.22265,3103.1,3102.9,0.0620104]
[1720619374163,3.22268,3103.0,3102.9,0.0620104]
[1720619374495,9.44536,3103.0,3102.9,0.0620104]
[1720619374673,12.66804,3103.0,3102.9,0.0620104]
[1720619375062,13.21804,3103.0,3102.9,0.0620104]
[1720619375991,9.44536,3103.0,3102.9,0.0620104]
[1720619376240,6.22268,3103.0,3102.9,0.0620104]
[1720619376407,3.0,3103.0,3102.9,0.0620104]
[1720619376627,3.22239,3103.3,3102.9,0.0620104]
[1720619376807,3.22265,3103.1,3102.9,0.0620104]
[1720619377006,6.52594106,3103.0,3102.9,0.0620104]
[1720619377366,6.44536,3103.0,3102.9,0.0620104]
[1720619377905,9.44536,3103.0,3102.9,0.0620104]
[1720619378556,12.66804,3103.0,3102.9,0.0620104]
[1720619380043,15.55194,3103.0,3102.9,0.0620104]
[1720619381610,9.44536,3103.0,3102.9,0.0620104]
[1720619382041,3.22268,3103.0,3102.9,0.0620104]
[1720619382311,6.44536,3103.0,3102.9,0.0620104]
[1720619383114,6.44509,3103.2,3102.9,0.0620104]
[1720619383314,3.0,3103.1,3102.9,0.0620104]
[1720619383564,3.22188,3103.8,3102.9,0.0620104]
[1720619383763,3.22244,3103.3,3102.9,0.0620104]
[1720619384078,3.82,3103.9,3102.9,0.0620104]
[1720619384079,3.22212,3103.6,3102.9,0.0620104]
[1720619384226,4.512816,3104.8,3102.9,0.0620104]
[1720619384227,3.22197,3103.7,3102.9,0.0620104]
[1720619384427,3.22192,3103.8,3102.9,0.0620104]
[1720619385027,3.22192,3103.8,3102.9,0.39051044]
[1720619385757,3.2223,3103.4,3102.9,0.0620104]
[1720619385963,3.22209,3103.6,3102.9,0.0620104]
[1720619386169,7.04143,3104.3,3102.9,0.0620104]
[1720619386170,3.0,3103.5,3102.9,0.0620104]
[1720619386344,3.22176,3103.9,3103.0,2.3014]
[1720619387726,6.22185,3103.8,3103.0,2.3014]
[1720619387931,3.22198,3103.7,3103.0,2.3014]
[1720619389091,3.08056473,3103.8,3103.0,2.3014]
[1720619389265,3.0,3103.8,3103.1,0.26919084]
[1720619389467,3.22097,3104.7,3103.1,20.10919084]
[1720619389468,3.22129,3104.4,3103.1,20.10919084]
[1720619389661,3.22129,3104.4,3103.3,3.22235]
[1720619389836,2.2901,3105.1,3103.2,19.904443]
[1720619389837,3.22113,3104.5,3103.5,3.22209]
[1720619390382,3.22151,3104.2,3103.4,2.3126793]
[1720619390677,3.30210357,3104.1,3103.4,2.3126793]
[1720619390984,0.08055357,3104.1,3103.2,19.84]
[1720619391131,3.22197,3103.7,3103.2,19.84]
[1720619391336,0.08056331,3103.6,3102.9,0.0620104]
[1720619391534,3.82,3103.9,3102.9,0.0620104]
[1720619391535,3.22235,3103.4,3102.9,0.0620104]
[1720619391768,3.0,3103.3,3102.9,0.0620104]
[1720619392135,3.0,3103.4,3102.9,0.0620104]
[1720619392468,3.08057278,3103.4,3102.9,0.0620104]
[1720619392630,3.22245,3103.3,3102.9,0.0620104]
[1720619392856,3.22245,3103.3,3102.4,2.4919]
[1720619392857,16.71072,3103.0,3101.5,12.16]
[1720619393043,16.71072,3103.0,3101.4,7.475]
[1720619393044,3.22416,3101.6,3101.4,7.475]
[1720619393235,3.22362,3102.1,3101.4,0.005]
[1720619393471,2.3756,3102.4,3101.4,0.005]
[1720619393472,3.22353,3102.2,3101.4,0.005]
[1720619393672,3.22396,3101.8,3101.4,0.005]
[1720619393872,3.22373,3102.0,3101.4,0.005]
[1720619394030,6.82,3102.6,3101.4,0.005]
[1720619394031,0.08061078,3102.4,3101.4,0.005]
[1720619394236,3.22332,3102.4,3101.4,0.005]
[1720619394438,3.0,3102.3,3101.4,0.005]
[1720619394638,3.30420322,3102.2,3101.4,0.005]
[1720619394909,3.22364,3102.1,3101.4,0.005]
[1720619395086,3.0,3102.0,3101.4,0.005]
[1720619395880,3.0,3102.3,3101.4,0.005]
[1720619396093,6.22341,3102.3,3101.4,0.005]
[1720619396238,3.22373,3102.0,3101.4,0.005]
[1720619396791,3.22412,3101.7,3101.4,0.005]
[1720619396991,3.22415,3101.6,3101.4,0.005]
[1720619397488,3.22424,3101.5,3101.4,0.005]
[1720619397987,3.0,3101.9,3101.4,0.005]
[1720619398295,6.30456868,3101.8,3101.4,0.005]
[1720619398470,3.22424,3101.5,3101.4,0.005]
[1720619398705,6.22424,3101.5,3101.4,0.005]
[1720619398994,9.44848,3101.5,3101.4,0.005]
[1720619399152,6.44848,3101.5,3101.4,0.005]
[1720619399350,9.44848,3101.5,3101.4,0.005]
[1720619400495,3.22362,3102.2,3101.4,0.005]
[1720619400715,3.22424,3101.5,3101.4,0.005]
[1720619400996,6.52910006,3101.5,3101.4,0.005]
[1720619401293,9.44848,3101.5,3101.4,0.005]
[1720619401990,6.22424,3101.5,3101.4,0.005]
[1720619402351,9.44848,3101.5,3101.4,0.005]
[1720619403354,6.22424,3101.5,3101.4,0.005]
[1720619403699,9.44848,3101.5,3101.4,0.005]
[1720619404113,6.22424,3101.5,3101.4,0.005]
[1720619404797,9.44848,3101.5,3101.4,0.005]
[1720619405464,12.67272,3101.5,3101.4,0.005]
[1720619406049,9.44848,3101.5,3101.4,0.005]
[1720619406312,12.67272,3101.5,3101.4,0.005]
[1720619406464,12.67272,3101.5,3101.2,0.005]
[1720619406465,9.67335,3101.3,3101.2,0.005]
[1720619406664,12.67335,3101.3,3101.2,0.005]
[1720619406993,16.4478,3101.3,3101.2,0.005]
[1720619407200,12.67335,3101.3,3101.2,0.005]
[1720619408287,12.67335,3101.3,3100.4,19.84]
[1720619408288,3.22526,3100.6,3100.4,19.84]
[1720619408549,3.22528,3100.5,3099.9,2.4301]
[1720619408799,3.22509,3100.7,3099.9,2.68431104]
[1720619409293,3.22509,3100.7,3099.8,0.1120104]
[1720619409294,3.0,3100.6,3099.8,0.1120104]
[1720619409513,3.0,3100.6,3099.9,2.3831]
[1720619409685,3.22538,3100.5,3099.9,2.3831]
[1720619409993,3.22561,3100.2,3099.8,0.1120104]
[1720619410203,3.2257,3100.1,3099.8,0.1120104]
[1720619410888,3.30646388,3100.0,3099.8,0.1120104]
[1720619411103,3.22581,3100.0,3099.8,0.1120104]
[1720619411796,3.30646767,3100.0,3099.8,0.1120104]
[1720619411959,6.22591,3099.9,3099.8,0.1120104]
[1720619412156,9.53248082,3099.9,3099.8,0.1120104]
[1720619412384,9.45182,3099.9,3099.8,0.1120104]
[1720619413598,12.67773,3099.9,3099.8,0.1120104]
[1720619413826,13.22773,3099.9,3099.8,0.1120104]
[1720619416277,3.22653,3099.3,3099.2,0.005]
[1720619416478,6.22653,3099.3,3099.2,0.005]
[1720619417442,9.53373815,3099.3,3099.2,0.005]
[1720619417620,12.67959,3099.3,3099.2,0.005]
[1720619417827,9.45306,3099.3,3099.2,0.005]
[1720619419227,12.67959,3099.3,3099.2,0.005]
[1720619419384,9.45306,3099.3,3099.2,0.005]
[1720619420897,3.0,3099.3,3099.2,0.005]
[1720619421238,0.50630638,3099.9,3099.2,0.005]
[1720619421795,0.50630638,3099.9,3099.2,0.328178]
[1720619421990,3.22635,3099.5,3099.2,0.005]
[1720619422200,0.08068254,3099.8,3099.2,0.005]
[1720619422508,0.50630638,3099.9,3099.2,0.005]
[1720619422509,6.45306,3099.3,3099.2,0.005]
[1720619422998,3.22653,3099.3,3099.2,0.005]
[1720619423335,3.73226638,3099.9,3099.2,0.005]
[1720619423633,3.22634,3099.5,3099.2,0.005]
[1720619423840,10.27306,3099.3,3099.2,0.005]
[1720619424005,6.45306,3099.3,3099.2,0.005]
[1720619424190,9.45306,3099.3,3099.2,0.005]
[1720619425550,3.0,3099.3,3099.2,0.005]
[1720619425830,6.22653,3099.3,3099.2,0.005]
[1720619426448,9.5337368,3099.3,3099.2,0.005]
[1720619426598,9.45306,3099.3,3099.2,0.005]
[1720619429229,6.22653,3099.3,3099.2,0.005]
[1720619430026,9.45306,3099.3,3099.2,0.005]
[1720619430229,6.22653,3099.3,3099.2,0.005]
[1720619430766,9.53374002,3099.3,3099.2,0.005]
[1720619433167,9.53374002,3099.3,3098.2,7.47]
[1720619433168,3.22727,3098.6,3098.2,7.47]
[1720619433376,3.22751,3098.4,3098.0,19.84]
[1720619433552,3.22751,3098.4,3098.3,0.07129714]
[1720619433726,3.22751,3098.4,3098.0,19.84]
[1720619434060,3.51948881,3099.3,3098.0,20.32943576]
[1720619434061,3.22664,3099.2,3098.0,20.32943576]
[1720619434228,3.22714,3098.8,3098.1,0.06911635]
[1720619434431,3.22686,3099.0,3098.1,0.06911635]
[1720619434746,6.22702,3098.9,3098.1,0.06911635]
[1720619435679,3.0,3098.9,3098.1,0.06911635]
[1720619435834,3.22648,3099.4,3098.2,4.47781164]
[1720619436024,3.22648,3099.4,3098.2,11.94781164]
[1720619436259,6.453,3099.4,3098.3,3.29661836]
[1720619436444,3.22664,3099.2,3098.3,0.06905836]
[1720619436679,3.22653,3099.3,3098.3,3.29662836]
[1720619436830,3.22641,3099.5,3098.4,1.524444]
[1720619437185,3.22644,3099.4,3098.5,0.06895699]
[1720619437487,2.705,3099.8,3098.5,3.36078852]
[1720619437625,0.50630638,3099.9,3098.9,3.22689]
[1720619437967,0.50630638,3099.9,3099.1,2.4946]
[1720619438270,0.50630638,3099.9,3099.3,3.22649]
[1720619438798,0.50630638,3099.9,3099.4,0.06863681]
[1720619439074,0.50630638,3099.9,3099.2,0.26278862]
[1720619439380,0.50630638,3099.9,3099.5,0.06860784]